fUSD/lending_fUSD_20240327
["ID","MTS","AMOUNT","RATE_DAILY","PERIOD"]
[320782372,1711555843770,-383.93686224,0.00039591,2]
[320782373,1711555843781,-239.77693026,0.00039591,2]
[320782374,1711555843791,-14764.12439567,0.00039591,2]
[320782375,1711555843801,-21314.23395315,0.00039591,2]
[320782376,1711555843810,-316.03311589,0.00039591,2]
[320782377,1711555843820,-1761.29086141,0.00039591,2]
[320782378,1711555843830,-4573.51211245,0.00039591,10]
[320782379,1711555843839,-531.36452986,0.00039591,2]
[320782380,1711555843849,-4898.13682248,0.00039591,2]
[320782381,1711555843858,-353.47120927,0.00039591,2]
[320782382,1711555843867,-590.8879789,0.00039591,2]
[320782383,1711555843877,-9469.19395199,0.00039591,2]
[320782384,1711555843891,-34830.436605,0.00039591,2]
[320782385,1711555843900,-485195.52353298,0.00039591,2]
[320782386,1711555843910,-1782.42653973,0.00039591,2]
[320782387,1711555843919,-336.63899867,0.00039591,2]
[320782388,1711555843929,-432871.07916732,0.00039591,20]
[320782389,1711555843939,-5022.28072128,0.00039591,2]
[320782390,1711555843948,-11487.77312901,0.00039591,2]
[320782391,1711555843959,-13000.0,0.00039591,2]
[320782392,1711555843969,-1002.39392956,0.00039591,2]
[320782393,1711555843978,-13626.84050767,0.00039591,2]
[320782394,1711555843988,-213.62458852,0.00039591,2]
[320782395,1711555843998,-635.48865945,0.00039591,2]
[320782396,1711555844007,-1001.52236621,0.00039591,2]
[320782397,1711555844017,-287.70875555,0.00039592,2]
[320782398,1711555844026,-271155.71523569,0.00039595,2]
[320782399,1711555844036,-2957.62674015,0.00039596,4]
[320782400,1711555844045,-223.43784518,0.00039596,30]
[320782401,1711555844054,-1926.0,0.00039599,15]
[320782402,1711555844064,-672.14,0.000396,7]
[320782403,1711555844073,-1222.75,0.000396,7]
[320782404,1711555844082,-150.5,0.00039601,15]
[320782405,1711555844092,-190.0,0.00039601,15]
[320782406,1711555844102,-1926.0,0.00039609,15]
[320782407,1711555844114,-150.5,0.00039611,15]
[320782408,1711555844123,-150.5,0.00039611,15]
[320782409,1711555844132,-190.0,0.00039611,15]
[320782410,1711555844145,-721.2841,0.00039619,4]
[320782411,1711555844157,-150.5,0.00039621,15]
[320782412,1711555844167,-150.5,0.00039621,15]
[320782413,1711555844177,-150.5,0.00039621,15]
[320782414,1711555844187,-190.0,0.00039621,15]
[320782415,1711555844197,-150.0,0.00039654,2]
[320782416,1711555844209,-1503.02,0.000397,7]
[320782417,1711555844223,-3000.0,0.000398,14]
[320782418,1711555844232,-150.0,0.00039846,2]
[320782419,1711555844242,-15115.01657514,0.00039847,2]
[320782420,1711555844252,-3700.0,0.000399,14]
[320782421,1711555844264,-151.0,0.00039974,4]
[320782422,1711555844273,-192.22165366,0.0004,2]
[320782423,1711555844283,-368.1217085,0.0004,2]
[320782424,1711555844293,-89470.67245638,0.0004,2]
[320782425,1711555844302,-234.11023033,0.0004,30]
[320782426,1711555844312,-2395.65757029,0.0004,120]
[320782427,1711555844322,-23642.90495713,0.0004,4]
[320782428,1711555844332,-349.82864543,0.0004,30]
[320782429,1711555844341,-1166.44971,0.0004,60]
[320782430,1711555844351,-7944.36792634,0.00040224,2]
[320782431,1711555844361,-361.35881735,0.00040357,2]
[320782432,1711555844371,-150.0,0.00040375,2]
[320782433,1711555844381,-910.06,0.00040392,2]
[320782434,1711555844390,-788.68558184,0.00040402,9]
[320782435,1711555844399,-237.951906,0.00040408,9]
[320782436,1711555844409,-3810.6137791,0.00040479,14]
[320782437,1711555844419,-211.994569,0.00040548,14]
[320782438,1711555844429,-737.1,0.00040767,15]
[320782439,1711555844439,-151.0,0.0004079,2]
[320782440,1711555844448,-150.0,0.00040846,2]
[320782441,1711555844461,-1222.75,0.000409,7]
[320782442,1711555844471,-150.0,0.00041053,120]
[320782443,1711555844481,-315.00058847,0.00041096,2]
[320782444,1711555844490,-183.0,0.00041096,2]
[320782445,1711555844500,-150.0,0.00041096,2]
[320782446,1711555844509,-672.14,0.000411,7]
[320782447,1711555844519,-1000.0,0.00041174,2]
[320782448,1711555844529,-675.07505951,0.00041218,10]
[320782449,1711555844538,-1503.02,0.000413,7]
[320782450,1711555844548,-248.95168555,0.00041339,15]
[320782451,1711555844558,-150.54463512,0.00041353,11]
[320782453,1711555844568,-211.994569,0.0004137,14]
[320782455,1711555844577,-400.0,0.00041555,120]
[320782456,1711555844587,-150.0,0.00041846,60]
[320782457,1711555844597,-8748.5368632,0.00042,2]
[320782458,1711555844606,-1300.613828,0.0004201,2]
[320782459,1711555844617,-3810.6137791,0.00042058,16]
[320782460,1711555844626,-1222.75,0.000421,7]
[320782461,1711555844636,-211.994569,0.00042192,14]
[320782462,1711555844647,-910.06,0.00042656,2]
[320782463,1711555844657,-150.0,0.00042846,60]
[320782464,1711555844666,-672.14,0.000429,7]
[320782465,1711555844675,-361.35881735,0.00042971,2]
[320782466,1711555844685,-158.24826492,0.00043,120]
[320782467,1711555844694,-211.994569,0.00043014,14]
[320782468,1711555844706,-2682.32421534,0.00043155,36]
[320782469,1711555844715,-1503.02,0.000433,7]
[320782470,1711555844724,-392.58,0.00043311,2]
[320782471,1711555844734,-392.58,0.00043322,2]
[320782472,1711555844743,-392.58,0.00043334,2]
[320782473,1711555844752,-392.58,0.00043345,2]
[320782474,1711555844761,-392.58,0.00043356,2]
[320782475,1711555844770,-392.58,0.00043368,2]
[320782476,1711555844780,-392.58,0.00043379,2]
[320782477,1711555844789,-392.58,0.00043391,2]
[320782478,1711555844798,-392.58,0.00043402,2]
[320782479,1711555844808,-392.58,0.00043413,2]
[320782480,1711555844817,-392.58,0.00043425,2]
[320782481,1711555844827,-392.58,0.00043436,2]
[320782482,1711555844836,-392.58,0.00043448,2]
[320782483,1711555844846,-392.58,0.00043459,2]
[320782484,1711555844856,-392.58,0.0004347,2]
[320782485,1711555844866,-392.58,0.00043482,2]
[320782486,1711555844875,-392.58,0.00043493,2]
[320782487,1711555844884,-392.58,0.00043504,2]
[320782488,1711555844894,-737.1,0.00043507,15]
[320782489,1711555844903,-392.58,0.00043516,2]
[320782490,1711555844912,-392.58,0.00043527,2]
[320782491,1711555844921,-2205.23,0.00043562,2]
[320782492,1711555844931,-3810.6137791,0.00043637,18]
[320782493,1711555844940,-1222.75,0.000437,7]
[320782494,1711555844949,-7820.7,0.00043744,2]
[320782495,1711555844960,-211.994569,0.00043836,14]
[320782496,1711555844970,-150.54463512,0.00043846,21]
[320782497,1711555844979,-150.0,0.00043846,60]
[320782498,1711555844989,-700.0,0.000439,16]
[320782499,1711555844998,-788.68558184,0.00043906,11]
[320782500,1711555845007,-7944.36792634,0.0004391,2]
[320782501,1711555845017,-237.951906,0.00043911,11]
[320782502,1711555845026,-2864.93261677,0.00044,2]
[320782503,1711555845155,-946.92661912,0.00044,2]
[320782504,1711555845167,-619.07979842,0.00044,2]
[320782505,1711555845180,-463.40972193,0.00044,2]
[320782506,1711555845205,-185.73336312,0.00021885,2]
[320782507,1711555845215,-7730.65124376,0.00044,2]
[320782508,1711555845225,-448196.50033984,0.00044,7]
[320782509,1711555845235,-672.14,0.00044,7]
[320782510,1711555845244,-675.07505951,0.00044587,11]
[320782511,1711555845257,-1503.02,0.000446,7]
[320782512,1711555845266,-211.994569,0.00044658,14]
[320782513,1711555845276,-910.06,0.0004492,2]
[320782514,1711555845286,-5158.40228082,0.0004498,2]
[320782515,1711555845295,-130409.31921875,0.00045,2]
[320782516,1711555845305,-327.44661613,0.00045,4]
[320782517,1711555845316,-1117.70378991,0.00045,30]
[320782518,1711555845326,-190.21,0.00045205,2]
[320782519,1711555845335,-3810.6137791,0.00045216,20]
[320782520,1711555845345,-151.0,0.00045322,2]
[320782521,1711555845354,-250.49088,0.00045322,2]
[320782522,1711555845364,-400.0,0.00045333,120]
[320782523,1711555845373,-211.994569,0.00045479,14]
[320782524,1711555845382,-1222.75,0.000455,7]
[320782525,1711555845392,-361.35881735,0.00045586,2]
[320782526,1711555845402,-248.95168555,0.000457,21]
[320782527,1711555845411,-672.14,0.000457,7]
[320782528,1711555845421,-287.70875555,0.00045997,2]
[320782529,1711555845430,-162090.56128272,0.00046,120]
[320782530,1711555845439,-2165.69339069,0.00046,2]
[320782531,1711555845449,-10000.0,0.00046,2]
[320782532,1711555845460,-302.0,0.00046084,4]
[320782533,1711555845469,-737.1,0.00046247,15]
[320782534,1711555845478,-150.54463512,0.00046339,30]
[320782535,1711555845487,-1503.02,0.000464,7]
[320782536,1711555845497,-3810.6137791,0.00046795,22]
[320782537,1711555845506,-2682.32421534,0.00046818,42]
[320782538,1711555845515,-604.0,0.00046858,7]
[320782539,1711555845524,-7000.0,0.00046933,2]
[320782540,1711555845533,-1222.75,0.00047,7]
[320782541,1711555845543,-910.06,0.00047184,2]
[320782542,1711555845552,-1280.62871207,0.00047196,2]
[320782543,1711555845561,-5534.48199251,0.00047196,2]
[320782544,1711555845570,-1176.0,0.00047216,2]
[320782545,1711555845579,-4771.0,0.00047216,2]
[320782546,1711555845588,-2449.0,0.00047216,2]
[320782548,1711555845598,-5680.0,0.00047216,2]
[320782550,1711555845607,-42929.0,0.00047216,2]
[320782552,1711555845616,-1046.0,0.00047216,2]
[320782553,1711555845625,-288.24024365,0.00047389,30]
[320782555,1711555845634,-672.14,0.000474,7]
[320782558,1711555845646,-788.68558184,0.00047411,13]
[320782559,1711555845655,-237.951906,0.00047414,13]
[320782562,1711555845664,-302.065426,0.00047498,99]
[320782564,1711555845674,-303.42,0.00047543,2]
[320782567,1711555845683,-924.51,0.00047543,2]
[320782568,1711555845693,-150.0,0.00047543,2]
[320782569,1711555845702,-150.0,0.00047543,2]
[320782571,1711555845773,-517.46,0.00047543,2]
[320782572,1711555845783,-415.7,0.00047543,2]
[320782573,1711555845792,-924.51,0.00047543,2]
[320782574,1711555845801,-150.0,0.00047543,2]
[320782575,1711555845810,-150.0,0.00047543,2]
[320782576,1711555845819,-924.51,0.00047543,2]
[320782577,1711555845829,-150.0,0.00047543,2]
[320782578,1711555845838,-150.0,0.00047543,2]
[320782579,1711555845847,-924.51,0.00047543,2]
[320782580,1711555845856,-161.39,0.00047543,2]
[320782581,1711555845865,-150.0,0.00047543,2]
[320782582,1711555845874,-415.7,0.00047543,2]
[320782583,1711555845883,-409.3,0.00047543,2]
[320782584,1711555845892,-150.0,0.00047543,2]
[320782585,1711555845901,-924.51,0.00047543,2]
[320782586,1711555845911,-161.39,0.00047543,2]
[320782587,1711555845920,-150.0,0.00047543,2]
[320782588,1711555845929,-415.7,0.00047543,2]
[320782589,1711555845938,-150.0,0.00047543,2]
[320782590,1711555845949,-161.39,0.00047543,2]
[320782591,1711555845960,-415.7,0.00047543,2]
[320782592,1711555845970,-409.3,0.00047543,2]
[320782593,1711555845979,-150.0,0.00047543,2]
[320782594,1711555845989,-150.0,0.00047543,2]
[320782595,1711555845997,-161.39,0.00047543,2]
[320782596,1711555846006,-415.7,0.00047543,2]
[320782597,1711555846015,-150.0,0.00047543,2]
[320782598,1711555846024,-150.0,0.00047543,2]
[320782599,1711555846033,-161.39,0.00047543,2]
[320782600,1711555846042,-415.7,0.00047543,2]
[320782601,1711555846052,-150.0,0.00047543,2]
[320782602,1711555846061,-409.3,0.00047543,2]
[320782603,1711555846071,-415.7,0.00047543,2]
[320782604,1711555846080,-150.0,0.00047543,2]
[320782605,1711555846090,-921.51,0.00047543,2]
[320782606,1711555846099,-150.0,0.00047543,2]
[320782607,1711555846114,-161.39,0.00047543,2]
[320782608,1711555846127,-415.7,0.00047543,2]
[320782609,1711555846137,-150.0,0.00047543,2]
[320782610,1711555846148,-161.39,0.00047543,2]
[320782611,1711555846159,-150.0,0.00047543,2]
[320782612,1711555846170,-415.7,0.00047543,2]
[320782613,1711555846180,-409.3,0.00047543,2]
[320782614,1711555846190,-150.0,0.00047543,2]
[320782615,1711555846200,-161.39,0.00047543,2]
[320782616,1711555846218,-150.0,0.00047543,2]
[320782617,1711555846229,-150.0,0.00047543,2]
[320782618,1711555846240,-409.3,0.00047543,2]
[320782619,1711555846251,-150.0,0.00047543,2]
[320782620,1711555846262,-161.39,0.00047543,2]
[320782621,1711555846272,-150.0,0.00047543,2]
[320782622,1711555846283,-150.0,0.00047543,2]
[320782623,1711555846294,-150.0,0.00047543,2]
[320782624,1711555846304,-161.39,0.00047543,2]
[320782625,1711555846315,-415.7,0.00047543,2]
[320782626,1711555846325,-150.0,0.00047543,2]
[320782627,1711555846335,-898.49,0.00047543,2]
[320782628,1711555846345,-150.0,0.00047543,2]
[320782629,1711555846360,-415.7,0.00047543,2]
[320782630,1711555846370,-161.39,0.00047543,2]
[320782631,1711555846383,-415.7,0.00047543,2]
[320782632,1711555846397,-161.39,0.00047543,2]
[320782633,1711555846408,-415.7,0.00047543,2]
[320782634,1711555846421,-161.39,0.00047543,2]
[320782635,1711555846432,-415.7,0.00047543,2]
[320782636,1711555846442,-161.39,0.00047543,2]
[320782637,1711555846454,-161.39,0.00047543,2]
[320782638,1711555846475,-923.19,0.00047543,2]
[320782639,1711555846487,-305.11,0.00047543,2]
[320782640,1711555846498,-262.86,0.00047543,2]
[320782641,1711555846510,-432.75,0.00047543,2]
[320782642,1711555846521,-302.9,0.00047543,2]
[320782643,1711555846531,-412.85,0.00047543,2]
[320782644,1711555846542,-7944.36792634,0.00047596,2]
[320782645,1711555846554,-5121.63119002,0.000476,2]
[320782646,1711555846568,-166.99392,0.00047646,4]
[320782647,1711555846579,-1503.02,0.000479,7]
[320782648,1711555846590,-675.07505951,0.00047956,13]
[320782649,1711555846602,-4706.660636,0.00048,2]
[320782650,1711555846613,-1208.0,0.00048045,30]
[320782651,1711555846623,-361.35881735,0.000482,2]
[320782652,1711555846635,-3810.6137791,0.00048374,24]
[320782653,1711555846645,-1222.75,0.000484,7]
[320782654,1711555846655,-10047.99708809,0.000485,90]
[320782655,1711555846666,-1011.0,0.000487,117]
[320782656,1711555846676,-672.14,0.000487,7]
[320782657,1711555846687,-571.0,0.0004877,15]
[320782658,1711555846698,-446.0,0.0004877,15]
[320782659,1711555846712,-571.0,0.0004878,15]
[320782660,1711555846724,-446.0,0.0004878,15]
[320782661,1711555846735,-571.0,0.0004879,15]
[320782662,1711555846745,-446.0,0.0004879,15]
[320782663,1711555846756,-151.032715,0.00048798,96]
[320782664,1711555846767,-302.065212,0.00048798,66]
[320782665,1711555846777,-62450.32494811,0.000488,120]
[320782666,1711555846788,-712.87217546,0.00048819,4]
[320782667,1711555846799,-150.54463512,0.00048832,40]
[320782668,1711555846810,-1150.8350222,0.00048877,2]
[320782669,1711555846820,-150.0,0.00048879,7]
[320782670,1711555846829,-150.0,0.00048879,7]
[320782671,1711555846839,-1145954.64345827,0.0004888,2]
[320782672,1711555846849,-737.1,0.00048986,15]
[320782673,1711555846859,-400.4046284,0.0004899,4]
[320782674,1711555846868,-3303.34437691,0.00049,2]
[320782675,1711555846878,-629.15355604,0.00049,2]
[320782676,1711555846887,-21423.41263488,0.00049,2]
[320782677,1711555846897,-3958.74014736,0.00049,2]
[320782678,1711555846906,-13930.11101579,0.00049,30]
[320782679,1711555846916,-287.70875555,0.00049151,2]
[320782680,1711555846925,-29999.99,0.00049154,45]
[320782681,1711555846934,-12933.64,0.00049154,2]
[320782682,1711555846944,-3000.0,0.000492,69]
[320782683,1711555846956,-1503.02,0.000492,7]
[320782684,1711555846969,-3000.0,0.0004921,69]
[320782685,1711555846979,-3000.0,0.0004922,69]
[320782686,1711555846988,-3000.0,0.0004923,69]
[320782687,1711555846997,-3000.0,0.0004924,69]
[320782688,1711555847007,-3000.0,0.0004925,69]
[320782689,1711555847016,-3000.0,0.0004926,69]
[320782690,1711555847026,-3000.0,0.0004927,69]
[320782691,1711555847035,-3000.0,0.0004928,69]
[320782692,1711555847045,-3000.0,0.0004929,69]
[320782693,1711555847054,-786.46772033,0.000493,2]
[320782694,1711555847063,-480.0,0.000493,2]
[320782695,1711555847072,-3000.0,0.000493,69]
[320782696,1711555847082,-3955.117923,0.0004931,70]
[320782697,1711555847091,-1000.0,0.00049315,60]
[320782698,1711555847100,-151.0,0.00049315,120]
[320782699,1711555847113,-151.0,0.00049315,120]
[320782700,1711555847122,-151.0,0.00049315,120]
[320782701,1711555847131,-151.0,0.00049315,30]
[320782702,1711555847141,-151.0,0.00049315,30]
[320782703,1711555847151,-151.0,0.00049315,30]
[320782704,1711555847161,-151.0,0.00049315,120]
[320782705,1711555847170,-151.0,0.00049315,120]
[320782706,1711555847180,-151.0,0.00049315,120]
[320782707,1711555847189,-151.0,0.00049315,30]
[320782708,1711555847199,-151.0,0.00049315,30]
[320782709,1711555847213,-151.0,0.00049315,30]
[320782710,1711555847223,-151.0,0.00049315,120]
[320782711,1711555847233,-151.0,0.00049315,120]
[320782712,1711555847242,-151.0,0.00049315,120]
[320782713,1711555847251,-151.0,0.00049315,120]
[320782714,1711555847261,-151.0,0.00049315,120]
[320782715,1711555847271,-151.0,0.00049315,120]
[320782716,1711555847280,-151.0,0.00049315,120]
[320782717,1711555847292,-151.0,0.00049315,120]
[320782718,1711555847301,-151.0,0.00049315,120]
[320782719,1711555847311,-151.0,0.00049315,120]
[320782720,1711555847320,-151.0,0.00049315,120]
[320782721,1711555847330,-151.0,0.00049315,120]
[320782722,1711555847340,-151.0,0.00049315,120]
[320782723,1711555847350,-151.0,0.00049315,120]
[320782724,1711555847359,-151.0,0.00049315,120]
[320782725,1711555847369,-151.0,0.00049315,120]
[320782726,1711555847378,-151.0,0.00049315,120]
[320782727,1711555847388,-151.0,0.00049315,120]
[320782728,1711555847397,-151.0,0.00049315,120]
[320782729,1711555847406,-151.0,0.00049315,120]
[320782730,1711555847416,-151.0,0.00049315,120]
[320782731,1711555847425,-151.0,0.00049315,120]
[320782732,1711555847435,-287.94954,0.00049315,120]
[320782733,1711555847445,-151.0,0.00049315,120]
[320782734,1711555847454,-151.0,0.00049315,120]
[320782735,1711555847465,-151.0,0.00049315,120]
[320782736,1711555847474,-151.0,0.00049315,120]
[320782737,1711555847482,-151.0,0.00049315,120]
[320782738,1711555847492,-151.0,0.00049315,120]
[320782739,1711555847501,-151.0,0.00049315,120]
[320782740,1711555847511,-151.0,0.00049315,120]
[320782741,1711555847520,-151.0,0.00049315,120]
[320782742,1711555847529,-151.0,0.00049315,120]
[320782743,1711555847538,-151.0,0.00049315,120]
[320782744,1711555847547,-151.0,0.00049315,120]
[320782745,1711555847556,-151.0,0.00049315,120]
[320782746,1711555847566,-151.0,0.00049315,120]
[320782747,1711555847575,-151.0,0.00049315,120]
[320782748,1711555847585,-151.0,0.00049315,120]
[320782749,1711555847594,-214.602427,0.00049315,120]
[320782750,1711555847603,-151.0,0.00049315,120]
[320782751,1711555847612,-151.0,0.00049315,120]
[320782752,1711555847621,-151.0,0.00049315,120]
[320782753,1711555847630,-151.0,0.00049315,120]
[320782754,1711555847640,-262.611744,0.00049315,120]
[320782755,1711555847648,-262.611744,0.00049315,120]
[320782756,1711555847657,-262.611744,0.00049315,120]
[320782757,1711555847667,-262.611744,0.00049315,120]
[320782758,1711555847676,-262.611744,0.00049315,120]
[320782759,1711555847685,-262.611744,0.00049315,120]
[320782760,1711555847694,-151.0,0.00049315,7]
[320782761,1711555847703,-151.0,0.00049315,7]
[320782762,1711555847714,-151.0,0.00049315,120]
[320782763,1711555847723,-151.0,0.00049315,120]
[320782764,1711555847733,-168.068611,0.00049315,120]
[320782765,1711555847742,-151.0,0.00049315,120]
[320782766,1711555847751,-282.653038,0.00049315,120]
[320782767,1711555847760,-151.0,0.00049315,120]
[320782768,1711555847770,-184.888124,0.00049315,120]
[320782769,1711555847779,-151.0,0.00049315,120]
[320782770,1711555847788,-184.888124,0.00049315,120]
[320782771,1711555847797,-151.0,0.00049315,120]
[320782772,1711555847806,-184.888124,0.00049315,120]
[320782773,1711555847815,-151.0,0.00049315,120]
[320782774,1711555847824,-184.888124,0.00049315,120]
[320782775,1711555847834,-184.888124,0.00049315,120]
[320782776,1711555847844,-184.888124,0.00049315,120]
[320782777,1711555847852,-151.0,0.00049315,120]
[320782778,1711555847862,-151.0,0.00049315,120]
[320782779,1711555847871,-151.0,0.00049315,120]
[320782780,1711555847881,-151.0,0.00049315,120]
[320782781,1711555847890,-151.0,0.00049315,120]
[320782782,1711555847899,-151.0,0.00049315,120]
[320782783,1711555847908,-151.0,0.00049315,120]
[320782784,1711555847917,-151.0,0.00049315,120]
[320782785,1711555847926,-249.383778,0.00049315,120]
[320782786,1711555847935,-151.0,0.00049315,120]
[320782787,1711555847945,-151.0,0.00049315,120]
[320782788,1711555847955,-151.0,0.00049315,120]
[320782789,1711555847968,-151.0,0.00049315,120]
[320782790,1711555847977,-151.0,0.00049315,120]
[320782791,1711555847987,-151.0,0.00049315,120]
[320782792,1711555847996,-290.17522,0.00049315,120]
[320782793,1711555848006,-151.0,0.00049315,120]
[320782794,1711555848016,-151.0,0.00049315,120]
[320782795,1711555848025,-151.0,0.00049315,120]
[320782796,1711555848034,-151.0,0.00049315,120]
[320782797,1711555848043,-151.0,0.00049315,120]
[320782798,1711555848053,-230.066298,0.00049315,120]
[320782799,1711555848063,-151.0,0.00049315,120]
[320782800,1711555848072,-151.0,0.00049315,120]
[320782801,1711555848082,-151.0,0.00049315,120]
[320782802,1711555848091,-151.0,0.00049315,120]
[320782803,1711555848101,-239.686743,0.00049315,120]
[320782804,1711555848114,-151.0,0.00049315,120]
[320782805,1711555848123,-151.0,0.00049315,120]
[320782806,1711555848135,-151.0,0.00049315,120]
[320782807,1711555848147,-151.0,0.00049315,30]
[320782808,1711555848159,-151.0,0.00049315,30]
[320782809,1711555848170,-151.0,0.00049315,30]
[320782810,1711555848181,-196.0,0.00049315,60]
[320782811,1711555848193,-196.0,0.00049315,60]
[320782812,1711555848207,-196.0,0.00049315,60]
[320782813,1711555848219,-196.0,0.00049315,60]
[320782814,1711555848230,-196.0,0.00049315,60]
[320782815,1711555848240,-196.0,0.00049315,60]
[320782816,1711555848251,-1391.876613,0.00049315,120]
[320782817,1711555848261,-1391.876613,0.00049315,120]
[320782818,1711555848271,-1391.876613,0.00049315,120]
[320782819,1711555848280,-1391.876613,0.00049315,120]
[320782820,1711555848291,-1391.876613,0.00049315,120]
[320782821,1711555848301,-1391.876613,0.00049315,120]
[320782822,1711555848311,-151.0,0.00049315,120]
[320782823,1711555848322,-151.0,0.00049315,120]
[320782824,1711555848331,-151.0,0.00049315,120]
[320782825,1711555848340,-189.874082,0.00049315,120]
[320782826,1711555848350,-151.0,0.00049315,14]
[320782827,1711555848359,-151.0,0.00049315,14]
[320782828,1711555848369,-401.803918,0.00049315,120]
[320782829,1711555848378,-151.0,0.00049315,14]
[320782830,1711555848388,-401.803918,0.00049315,120]
[320782831,1711555848398,-401.803918,0.00049315,120]
[320782832,1711555848407,-151.0,0.00049315,120]
[320782833,1711555848416,-401.803918,0.00049315,120]
[320782834,1711555848426,-401.803918,0.00049315,120]
[320782835,1711555848435,-401.803918,0.00049315,120]
[320782836,1711555848445,-151.0,0.00049315,120]
[320782837,1711555848454,-151.0,0.00049315,120]
[320782838,1711555848464,-151.0,0.00049315,120]
[320782839,1711555848473,-151.0,0.00049315,120]
[320782840,1711555848483,-151.0,0.00049315,120]
[320782841,1711555848494,-1222.75,0.000494,7]
[320782842,1711555848503,-910.06,0.00049448,2]
[320782843,1711555848512,-1926.0,0.0004947,15]
[320782844,1711555848521,-1926.0,0.0004948,15]
[320782845,1711555848530,-1926.0,0.0004949,15]
[320782846,1711555848540,-151.032606,0.00049498,70]
[320782847,1711555848550,-1041.0,0.00049711,7]
[320782848,1711555848560,-302.065212,0.00049798,71]
[320782849,1711555848569,-115014.6639971,0.000499,30]
[320782850,1711555848579,-3810.6137791,0.00049953,26]
[320782851,1711555848588,-999.999999,0.0005,2]
[320782852,1711555848597,-5000.0,0.0005,30]
[320782853,1711555848606,-2641.26513815,0.0005,30]
[320782854,1711555848616,-2770.9489561,0.0005,30]
[320782855,1711555848625,-400213.79499151,0.0005,2]
[320782856,1711555848634,-1139.61631419,0.0005,4]
[320782857,1711555848644,-4968.05356652,0.0005,2]
[320782858,1711555848654,-116726.27316552,0.0005,120]
[320782859,1711555848663,-499.99999901,0.0005,2]
[320782860,1711555848672,-1117.79126651,0.0005,2]
[320782861,1711555848681,-814.90308272,0.0005,2]
[320782862,1711555848690,-3874.98124719,0.0005,2]
[320782863,1711555848700,-200.0,0.0005,2]
[320782864,1711555848710,-12347.76638773,0.0005,120]
[320782865,1711555848719,-428.13833816,0.0005,28]
[320782866,1711555848729,-567.75368568,0.0005,30]
[320782867,1711555848738,-726.494139,0.0005,51]
[320782868,1711555848748,-10000.0,0.0005,14]
[320782869,1711555848758,-2335.29653853,0.0005,30]
[320782870,1711555848766,-8007.0,0.0005,120]
[320782871,1711555848776,-672.14,0.0005,7]
[320782872,1711555848788,-150.57054431,0.0005,2]
[320782873,1711555848798,-248.95168555,0.0005006,26]
[320782874,1711555848807,-1278.17,0.00050137,120]
[320782875,1711555848817,-150.0,0.00050191,14]
[320782876,1711555848826,-1381.0,0.00050192,120]
[320782877,1711555848836,-961.0,0.00050192,120]
[320782878,1711555848845,-458.0,0.00050192,120]
[320782879,1711555848854,-2420.0,0.00050192,120]
[320782880,1711555848864,-537.0,0.00050192,120]
[320782881,1711555848873,-1252.0,0.00050192,120]
[320782882,1711555848882,-1225.0,0.00050192,120]
[320782883,1711555848892,-433.0,0.00050192,120]
[320782884,1711555848902,-802.0,0.00050192,120]
[320782885,1711555848912,-278.0,0.00050192,120]